[Event "November 21 Late 2023"]
[Site "https://www.chess.com"]
[Date "2023.11.21"]
[Round "1"]
[White "dodoucb"]
[Black "Erigaisi Arjun"]
[Result "0-1"]
[Board "6"]
[TimeControl "180+1"]
[BlackFideId "35009192"]
[WhiteElo "2507"]
[BlackElo "2729"]
[BlackTeam "IND"]
[WhiteClock "0:00:13"]
[BlackClock "0:02:42"]

1. e4 {[%clk 0:02:57]}  c6 {[%clk 0:03:00]} 2. d4 {[%clk 0:02:56]}  d5 {[%clk 0:03:01]} 3. e5 {[%clk 0:02:55]}  Bf5 {[%clk 0:03:00]} 4. g4 {[%clk 0:02:52]}  Be4 {[%clk 0:02:59]} 5. f3 {[%clk 0:02:42]}  Bg6 {[%clk 0:02:55]} 6. Bd3 {[%clk 0:02:39]}  e6 {[%clk 0:02:53]} 7. Ne2 {[%clk 0:02:21]}  c5 {[%clk 0:02:53]} 8. c3 {[%clk 0:02:10]}  Nc6 {[%clk 0:02:53]} 9. Be3 {[%clk 0:01:55]}  Qb6 {[%clk 0:02:51]} 10. Bxg6 {[%clk 0:01:22]}  hxg6 {[%clk 0:02:52]} 11. Qd2 {[%clk 0:01:20]}  Rc8 {[%clk 0:02:51]} 12. a3 {[%clk 0:01:16]}  Na5 {[%clk 0:02:50]} 13. dxc5 {[%clk 0:01:05]}  Qa6 {[%clk 0:02:49]} 14. Qc2 {[%clk 0:00:59]}  Nc4 {[%clk 0:02:47]} 15. Bd4 {[%clk 0:00:58]}  Bxc5 {[%clk 0:02:44]} 16. Nd2 {[%clk 0:00:57]}  Ne7 {[%clk 0:02:41]} 17. Nxc4 {[%clk 0:00:26]}  Qxc4 {[%clk 0:02:42]} 18. Bxc5 {[%clk 0:00:23]}  Qxc5 {[%clk 0:02:42]} 19. Nd4 {[%clk 0:00:22]}  Qxd4 {[%clk 0:02:41]} 20. cxd4 {[%clk 0:00:13]}  Rxc2 {[%clk 0:02:42]} 0-1

[Event "November 21 Late 2023"]
[Site "https://www.chess.com"]
[Date "2023.11.21"]
[Round "1"]
[White "Le, Quang Liem"]
[Black "Kochiev, Ivan"]
[Result "1-0"]
[Board "7"]
[TimeControl "180+1"]
[WhiteFideId "12401137"]
[BlackFideId "2917890"]
[WhiteElo "2665"]
[BlackElo "2285"]
[WhiteTeam "VIE"]
[BlackTeam "BUL"]
[WhiteClock "0:01:11"]
[BlackClock "0:00:00"]

1. Nf3 {[%clk 0:03:00]}  Nf6 {[%clk 0:02:58]} 2. c4 {[%clk 0:03:00]}  e6 {[%clk 0:02:58]} 3. Nc3 {[%clk 0:02:59]}  d5 {[%clk 0:02:48]} 4. e3 {[%clk 0:02:58]}  b6 {[%clk 0:02:46]} 5. b3 {[%clk 0:02:57]}  Bb7 {[%clk 0:02:46]} 6. Bb2 {[%clk 0:02:57]}  Be7 {[%clk 0:02:46]} 7. cxd5 {[%clk 0:02:49]}  exd5 {[%clk 0:02:36]} 8. Rc1 {[%clk 0:02:48]}  O-O {[%clk 0:02:34]} 9. Ne2 {[%clk 0:02:35]}  Re8 {[%clk 0:02:25]} 10. g3 {[%clk 0:02:35]}  c5 {[%clk 0:02:06]} 11. Bg2 {[%clk 0:02:31]}  Nc6 {[%clk 0:01:48]} 12. d4 {[%clk 0:02:17]}  Rc8 {[%clk 0:01:40]} 13. O-O {[%clk 0:02:15]}  Ne4 {[%clk 0:01:35]} 14. Nf4 {[%clk 0:02:14]}  Bf6 {[%clk 0:01:33]} 15. Nh5 {[%clk 0:02:15]}  Be7 {[%clk 0:01:32]} 16. dxc5 {[%clk 0:02:15]}  g6 {[%clk 0:01:22]} 17. Nf4 {[%clk 0:02:14]}  Nb4 {[%clk 0:01:12]} 18. a3 {[%clk 0:01:48]}  Na6 {[%clk 0:01:00]} 19. cxb6 {[%clk 0:01:42]}  Rxc1 {[%clk 0:00:58]} 20. Qxc1 {[%clk 0:01:42]}  Qxb6 {[%clk 0:00:57]} 21. b4 {[%clk 0:01:40]}  Rc8 {[%clk 0:00:54]} 22. Qd1 {[%clk 0:01:35]}  Nc7 {[%clk 0:00:52]} 23. Ne5 {[%clk 0:01:30]}  Rd8 {[%clk 0:00:22]} 24. Qc2 {[%clk 0:01:25]}  Ne6 {[%clk 0:00:08]} 25. Nxd5 {[%clk 0:01:18]}  Bxd5 {[%clk 0:00:03]} 26. Bxe4 {[%clk 0:01:19]}  Bf6 {[%clk 0:00:02]} 27. Ng4 {[%clk 0:01:10]}  Bxb2 {[%clk 0:00:02]} 28. Qxb2 {[%clk 0:01:11]}  Bxe4 {[%clk 0:00:02]} 29. Nf6+ {[%clk 0:01:12]}  Kf8 {[%clk 0:00:00]} 30. Nxe4 {[%clk 0:01:11]} 1-0

[Event "November 21 Late 2023"]
[Site "https://www.chess.com"]
[Date "2023.11.21"]
[Round "1"]
[White "Cristi_Coca"]
[Black "Bortnyk, Olexandr"]
[Result "0-1"]
[Board "10"]
[TimeControl "180+1"]
[BlackFideId "14120828"]
[WhiteElo "2503"]
[BlackElo "2725"]
[BlackTeam "UKR"]
[WhiteClock "0:01:00"]
[BlackClock "0:00:11"]

1. e4 {[%clk 0:02:59]}  Nf6 {[%clk 0:02:55]} 2. e5 {[%clk 0:02:59]}  Nd5 {[%clk 0:02:50]} 3. d4 {[%clk 0:02:59]}  d6 {[%clk 0:02:50]} 4. Nf3 {[%clk 0:02:58]}  dxe5 {[%clk 0:02:50]} 5. dxe5 {[%clk 0:02:58]}  Bf5 {[%clk 0:01:58]} 6. Be2 {[%clk 0:02:49]}  Nc6 {[%clk 0:01:51]} 7. O-O {[%clk 0:02:48]}  e6 {[%clk 0:01:48]} 8. a3 {[%clk 0:02:47]}  Be7 {[%clk 0:01:45]} 9. c4 {[%clk 0:02:46]}  Nb6 {[%clk 0:01:45]} 10. Nc3 {[%clk 0:02:46]}  O-O {[%clk 0:01:43]} 11. b4 {[%clk 0:02:45]}  a5 {[%clk 0:01:28]} 12. b5 {[%clk 0:02:43]}  Na7 {[%clk 0:01:28]} 13. Be3 {[%clk 0:02:42]}  Qxd1 {[%clk 0:01:24]} 14. Rfxd1 {[%clk 0:02:41]}  Rad8 {[%clk 0:01:22]} 15. c5 {[%clk 0:02:30]}  Nd5 {[%clk 0:00:57]} 16. Nxd5 {[%clk 0:02:28]}  exd5 {[%clk 0:00:58]} 17. Rac1 {[%clk 0:02:17]}  Rfe8 {[%clk 0:00:50]} 18. a4 {[%clk 0:02:11]}  Nc8 {[%clk 0:00:49]} 19. Nd4 {[%clk 0:02:06]}  Be4 {[%clk 0:00:47]} 20. f3 {[%clk 0:02:04]}  Bg6 {[%clk 0:00:47]} 21. f4 {[%clk 0:02:02]}  Be4 {[%clk 0:00:45]} 22. Bd3 {[%clk 0:01:59]}  Bf8 {[%clk 0:00:43]} 23. Bxe4 {[%clk 0:01:59]}  dxe4 {[%clk 0:00:44]} 24. Nf5 {[%clk 0:01:47]}  Ne7 {[%clk 0:00:42]} 25. Ng3 {[%clk 0:01:45]}  Nd5 {[%clk 0:00:41]} 26. Kf2 {[%clk 0:01:39]}  Nxe3 {[%clk 0:00:35]} 27. Kxe3 {[%clk 0:01:39]}  Bxc5+ {[%clk 0:00:35]} 28. Kxe4 {[%clk 0:01:38]}  b6 {[%clk 0:00:34]} 29. Rd5 {[%clk 0:01:27]}  Rxd5 {[%clk 0:00:21]} 30. Kxd5 {[%clk 0:01:28]}  Rd8+ {[%clk 0:00:21]} 31. Kc6 {[%clk 0:01:28]}  Rd4 {[%clk 0:00:22]} 32. Kxc7 {[%clk 0:01:23]}  Rxf4 {[%clk 0:00:20]} 33. Rxc5 {[%clk 0:01:16]}  bxc5 {[%clk 0:00:21]} 34. b6 {[%clk 0:01:17]}  Rxa4 {[%clk 0:00:20]} 35. b7 {[%clk 0:01:17]}  Rb4 {[%clk 0:00:21]} 36. Ne4 {[%clk 0:01:17]}  c4 {[%clk 0:00:18]} 37. b8=Q+ {[%clk 0:01:16]}  Rxb8 {[%clk 0:00:19]} 38. Kxb8 {[%clk 0:01:17]}  Kf8 {[%clk 0:00:14]} 39. Kc7 {[%clk 0:01:16]}  Ke7 {[%clk 0:00:15]} 40. Kc6 {[%clk 0:01:15]}  Ke6 {[%clk 0:00:16]} 41. Kc5 {[%clk 0:01:15]}  Kxe5 {[%clk 0:00:17]} 42. Nc3 {[%clk 0:01:15]}  Kf4 {[%clk 0:00:16]} 43. Kxc4 {[%clk 0:01:15]}  Ke3 {[%clk 0:00:16]} 44. Kd5 {[%clk 0:01:12]}  Kf2 {[%clk 0:00:15]} 45. g4 {[%clk 0:01:11]}  Kg2 {[%clk 0:00:16]} 46. Kd6 {[%clk 0:01:11]}  Kxh2 {[%clk 0:00:15]} 47. Ke7 {[%clk 0:01:11]}  Kg3 {[%clk 0:00:13]} 48. Kxf7 {[%clk 0:01:12]}  Kxg4 {[%clk 0:00:12]} 49. Kxg7 {[%clk 0:01:12]}  h5 {[%clk 0:00:13]} 50. Kf6 {[%clk 0:01:09]}  Kf4 {[%clk 0:00:11]} 51. Ke6 {[%clk 0:01:05]}  h4 {[%clk 0:00:11]} 52. Ne2+ {[%clk 0:01:04]}  Ke3 {[%clk 0:00:10]} 53. Ng1 {[%clk 0:01:04]}  a4 {[%clk 0:00:11]} 54. Nh3 {[%clk 0:01:00]}  a3 {[%clk 0:00:11]} 0-1

[Event "November 21 Late 2023"]
[Site "https://www.chess.com"]
[Date "2023.11.21"]
[Round "1"]
[White "Hakobyan, Aram"]
[Black "Krzywda, Andrzej"]
[Result "1-0"]
[Board "11"]
[TimeControl "180+1"]
[WhiteFideId "13306677"]
[BlackFideId "1114565"]
[WhiteElo "2584"]
[BlackElo "2130"]
[WhiteTeam "ARM"]
[BlackTeam "POL"]
[WhiteClock "0:00:08"]
[BlackClock "0:00:00"]

1. d4 {[%clk 0:03:00]}  d5 {[%clk 0:02:59]} 2. Nf3 {[%clk 0:02:58]}  Nf6 {[%clk 0:02:59]} 3. c4 {[%clk 0:02:58]}  dxc4 {[%clk 0:02:59]} 4. e3 {[%clk 0:02:57]}  e6 {[%clk 0:03:00]} 5. Bxc4 {[%clk 0:02:57]}  c5 {[%clk 0:03:00]} 6. O-O {[%clk 0:02:57]}  Nc6 {[%clk 0:03:01]} 7. Re1 {[%clk 0:02:57]}  Be7 {[%clk 0:02:56]} 8. Bd3 {[%clk 0:02:56]}  O-O {[%clk 0:02:52]} 9. dxc5 {[%clk 0:02:55]}  Bxc5 {[%clk 0:02:51]} 10. a3 {[%clk 0:02:55]}  Be7 {[%clk 0:02:50]} 11. b4 {[%clk 0:02:55]}  b6 {[%clk 0:02:27]} 12. Bb2 {[%clk 0:02:51]}  Bb7 {[%clk 0:02:28]} 13. Qe2 {[%clk 0:02:50]}  Qc7 {[%clk 0:02:19]} 14. Nbd2 {[%clk 0:02:49]}  Rac8 {[%clk 0:02:17]} 15. Rac1 {[%clk 0:02:48]}  Qb8 {[%clk 0:02:17]} 16. Ne4 {[%clk 0:02:41]}  Nxe4 {[%clk 0:01:57]} 17. Bxe4 {[%clk 0:02:42]}  Rfd8 {[%clk 0:01:55]} 18. Rc2 {[%clk 0:01:52]}  Nxb4 {[%clk 0:01:39]} 19. Rxc8 {[%clk 0:01:50]}  Rxc8 {[%clk 0:01:26]} 20. Bxb7 {[%clk 0:01:35]}  Qxb7 {[%clk 0:01:26]} 21. axb4 {[%clk 0:01:35]}  Bxb4 {[%clk 0:01:27]} 22. Rd1 {[%clk 0:01:30]}  h6 {[%clk 0:01:23]} 23. Ne5 {[%clk 0:01:30]}  Qe4 {[%clk 0:01:00]} 24. Qd3 {[%clk 0:01:20]}  Qxd3 {[%clk 0:00:56]} 25. Nxd3 {[%clk 0:01:20]}  Rd8 {[%clk 0:00:50]} 26. Kf1 {[%clk 0:01:20]}  a5 {[%clk 0:00:50]} 27. Ke2 {[%clk 0:01:20]}  Be7 {[%clk 0:00:49]} 28. Bd4 {[%clk 0:01:20]}  b5 {[%clk 0:00:48]} 29. Ne5 {[%clk 0:01:13]}  Rc8 {[%clk 0:00:45]} 30. Bb6 {[%clk 0:01:04]}  a4 {[%clk 0:00:30]} 31. Rd7 {[%clk 0:01:03]}  Bf6 {[%clk 0:00:22]} 32. Bd4 {[%clk 0:00:53]}  b4 {[%clk 0:00:16]} 33. Nd3 {[%clk 0:00:49]}  b3 {[%clk 0:00:12]} 34. Ra7 {[%clk 0:00:49]}  Bxd4 {[%clk 0:00:08]} 35. exd4 {[%clk 0:00:49]}  Rc4 {[%clk 0:00:09]} 36. Kd2 {[%clk 0:00:47]}  Rxd4 {[%clk 0:00:08]} 37. Kc3 {[%clk 0:00:47]}  Re4 {[%clk 0:00:08]} 38. g3 {[%clk 0:00:37]}  g5 {[%clk 0:00:08]} 39. h3 {[%clk 0:00:36]}  Kg7 {[%clk 0:00:08]} 40. Nc5 {[%clk 0:00:21]}  Re2 {[%clk 0:00:07]} 41. Rxa4 {[%clk 0:00:21]}  Rxf2 {[%clk 0:00:06]} 42. Ra7 {[%clk 0:00:10]}  Rf3+ {[%clk 0:00:05]} 43. Kb2 {[%clk 0:00:10]}  Kf6 {[%clk 0:00:04]} 44. g4 {[%clk 0:00:06]}  Rxh3 {[%clk 0:00:03]} 45. Nd7+ {[%clk 0:00:07]}  Kg7 {[%clk 0:00:02]} 46. Ne5 {[%clk 0:00:08]}  Rg3 {[%clk 0:00:01]} 47. Rxf7+ {[%clk 0:00:08]}  Kg8 {[%clk 0:00:00]} 48. Rf6 {[%clk 0:00:08]} 1-0

[Event "November 21 Late 2023"]
[Site "https://www.chess.com"]
[Date "2023.11.21"]
[Round "1"]
[White "Urbina Perez, Juan Antonio"]
[Black "Esipenko, Andrey"]
[Result "0-1"]
[Board "12"]
[TimeControl "180+1"]
[WhiteFideId "2217368"]
[BlackFideId "24175439"]
[WhiteElo "2185"]
[BlackElo "2615"]
[WhiteTeam "ESP"]
[BlackTeam "FID"]
[WhiteClock "0:00:00"]
[BlackClock "0:00:41"]

1. d4 {[%clk 0:02:59]}  Nf6 {[%clk 0:02:55]} 2. c4 {[%clk 0:02:58]}  e6 {[%clk 0:02:53]} 3. Nf3 {[%clk 0:02:58]}  b6 {[%clk 0:02:53]} 4. g3 {[%clk 0:02:58]}  Ba6 {[%clk 0:02:53]} 5. Nbd2 {[%clk 0:02:57]}  c5 {[%clk 0:02:52]} 6. Bg2 {[%clk 0:02:54]}  Bb7 {[%clk 0:02:52]} 7. Nb3 {[%clk 0:02:47]}  d6 {[%clk 0:02:42]} 8. O-O {[%clk 0:02:45]}  Nbd7 {[%clk 0:02:39]} 9. Re1 {[%clk 0:02:40]}  Qc7 {[%clk 0:02:33]} 10. dxc5 {[%clk 0:02:33]}  bxc5 {[%clk 0:02:33]} 11. Bd2 {[%clk 0:02:29]}  a5 {[%clk 0:02:33]} 12. Bc3 {[%clk 0:02:25]}  Be7 {[%clk 0:02:32]} 13. Nc1 {[%clk 0:02:24]}  O-O {[%clk 0:02:31]} 14. Nd3 {[%clk 0:02:19]}  Ne4 {[%clk 0:02:30]} 15. Qc2 {[%clk 0:02:11]}  Nxc3 {[%clk 0:02:29]} 16. Qxc3 {[%clk 0:02:12]}  Nf6 {[%clk 0:02:27]} 17. Rad1 {[%clk 0:02:08]}  a4 {[%clk 0:02:25]} 18. Nd2 {[%clk 0:01:58]}  Bxg2 {[%clk 0:02:22]} 19. Kxg2 {[%clk 0:01:59]}  Qb7+ {[%clk 0:02:05]} 20. e4 {[%clk 0:01:55]}  d5 {[%clk 0:01:59]} 21. cxd5 {[%clk 0:01:37]}  exd5 {[%clk 0:01:58]} 22. Kg1 {[%clk 0:01:21]}  c4 {[%clk 0:01:49]} 23. Ne5 {[%clk 0:01:08]}  Bb4 {[%clk 0:01:48]} 24. Qd4 {[%clk 0:00:54]}  Rad8 {[%clk 0:01:11]} 25. exd5 {[%clk 0:00:32]}  Rxd5 {[%clk 0:01:10]} 26. Qf4 {[%clk 0:00:17]}  Rfd8 {[%clk 0:00:50]} 27. Nexc4 {[%clk 0:00:12]}  Rd4 {[%clk 0:00:50]} 28. Qe5 {[%clk 0:00:02]}  h5 {[%clk 0:00:44]} 29. b3 {[%clk 0:00:00]}  Bxd2 {[%clk 0:00:41]} 0-1

[Event "November 21 Late 2023"]
[Site "https://www.chess.com"]
[Date "2023.11.21"]
[Round "1"]
[White "Nikologorsky, Matfei"]
[Black "Xiong, Jeffery"]
[Result "0-1"]
[Board "16"]
[TimeControl "180+1"]
[WhiteFideId "24102474"]
[BlackFideId "2047640"]
[WhiteElo "2153"]
[BlackElo "2726"]
[WhiteTeam "FID"]
[BlackTeam "USA"]
[WhiteClock "0:00:18"]
[BlackClock "0:02:29"]

1. e4 {[%clk 0:03:00]}  c5 {[%clk 0:02:59]} 2. Nf3 {[%clk 0:02:59]}  d6 {[%clk 0:02:59]} 3. d4 {[%clk 0:02:59]}  cxd4 {[%clk 0:03:00]} 4. Nxd4 {[%clk 0:02:59]}  Nf6 {[%clk 0:03:01]} 5. Nc3 {[%clk 0:02:59]}  a6 {[%clk 0:03:01]} 6. h3 {[%clk 0:02:59]}  e5 {[%clk 0:03:01]} 7. Nde2 {[%clk 0:02:59]}  h5 {[%clk 0:03:01]} 8. Bg5 {[%clk 0:02:58]}  Be7 {[%clk 0:02:56]} 9. Nc1 {[%clk 0:02:57]}  Be6 {[%clk 0:02:55]} 10. Be2 {[%clk 0:02:55]}  Nbd7 {[%clk 0:02:54]} 11. Nb3 {[%clk 0:02:47]}  b5 {[%clk 0:02:52]} 12. Bf3 {[%clk 0:02:29]}  Nb6 {[%clk 0:02:50]} 13. Qe2 {[%clk 0:02:13]}  Rc8 {[%clk 0:02:49]} 14. O-O {[%clk 0:01:55]}  Bc4 {[%clk 0:02:47]} 15. Qd2 {[%clk 0:01:40]}  Bxf1 {[%clk 0:02:48]} 16. Kxf1 {[%clk 0:01:41]}  Nc4 {[%clk 0:02:48]} 17. Qc1 {[%clk 0:01:38]}  b4 {[%clk 0:02:37]} 18. Ne2 {[%clk 0:01:25]}  d5 {[%clk 0:02:37]} 19. Bxf6 {[%clk 0:01:16]}  Bxf6 {[%clk 0:02:37]} 20. Ng3 {[%clk 0:01:06]}  h4 {[%clk 0:02:37]} 21. Nf5 {[%clk 0:01:05]}  d4 {[%clk 0:02:30]} 22. Be2 {[%clk 0:00:27]}  g6 {[%clk 0:02:30]} 23. Nh6 {[%clk 0:00:18]}  Bg5 {[%clk 0:02:29]} 0-1

[Event "November 21 Late 2023"]
[Site "https://www.chess.com"]
[Date "2023.11.21"]
[Round "1"]
[White "Sreyas Payyappat"]
[Black "Sarana, Alexey"]
[Result "0-1"]
[Board "18"]
[TimeControl "180+1"]
[WhiteFideId "46674969"]
[BlackFideId "24133795"]
[WhiteElo "2043"]
[BlackElo "2707"]
[WhiteTeam "IND"]
[BlackTeam "SRB"]
[WhiteClock "0:00:02"]
[BlackClock "0:01:24"]

1. e4 {[%clk 0:02:41]}  c5 {[%clk 0:02:58]} 2. Nf3 {[%clk 0:02:30]}  d6 {[%clk 0:02:58]} 3. d4 {[%clk 0:02:27]}  cxd4 {[%clk 0:02:59]} 4. Nxd4 {[%clk 0:02:25]}  Nf6 {[%clk 0:03:00]} 5. Nc3 {[%clk 0:02:25]}  a6 {[%clk 0:03:01]} 6. h4 {[%clk 0:02:22]}  e5 {[%clk 0:02:59]} 7. Nb3 {[%clk 0:02:19]}  Be7 {[%clk 0:02:59]} 8. f4 {[%clk 0:02:18]}  Nc6 {[%clk 0:02:56]} 9. f5 {[%clk 0:02:14]}  d5 {[%clk 0:02:51]} 10. exd5 {[%clk 0:02:03]}  Nb4 {[%clk 0:02:51]} 11. Bc4 {[%clk 0:02:01]}  Bxf5 {[%clk 0:02:50]} 12. O-O {[%clk 0:01:58]}  Bxc2 {[%clk 0:02:48]} 13. Qf3 {[%clk 0:01:53]}  O-O {[%clk 0:02:33]} 14. Bg5 {[%clk 0:01:44]}  b5 {[%clk 0:02:31]} 15. Be2 {[%clk 0:01:31]}  e4 {[%clk 0:02:29]} 16. Qg3 {[%clk 0:01:21]}  Kh8 {[%clk 0:02:22]} 17. Nd4 {[%clk 0:01:19]}  Nfxd5 {[%clk 0:02:15]} 18. Nxc2 {[%clk 0:01:04]}  Bxg5 {[%clk 0:01:59]} 19. Nxb4 {[%clk 0:00:59]}  Bxh4 {[%clk 0:01:59]} 20. Qg4 {[%clk 0:00:30]}  Nxb4 {[%clk 0:01:56]} 21. Qxe4 {[%clk 0:00:28]}  Bg3 {[%clk 0:01:46]} 22. Rf3 {[%clk 0:00:16]}  Qb6+ {[%clk 0:01:45]} 23. Kf1 {[%clk 0:00:16]}  Bd6 {[%clk 0:01:40]} 24. a3 {[%clk 0:00:14]}  Rae8 {[%clk 0:01:35]} 25. Qf5 {[%clk 0:00:11]}  Re5 {[%clk 0:01:30]} 26. Qg4 {[%clk 0:00:08]}  Nc2 {[%clk 0:01:30]} 27. Bd3 {[%clk 0:00:06]}  Ne3+ {[%clk 0:01:29]} 28. Rxe3 {[%clk 0:00:06]}  Qxe3 {[%clk 0:01:30]} 29. Be4 {[%clk 0:00:03]}  Bc5 {[%clk 0:01:30]} 30. Qf3 {[%clk 0:00:03]}  Qg1+ {[%clk 0:01:27]} 31. Ke2 {[%clk 0:00:03]}  Qxa1 {[%clk 0:01:28]} 32. b4 {[%clk 0:00:03]}  Qb2+ {[%clk 0:01:27]} 33. Kd3 {[%clk 0:00:03]}  Rd8+ {[%clk 0:01:27]} 34. Nd5 {[%clk 0:00:02]}  Qxa3+ {[%clk 0:01:24]} 0-1

[Event "November 21 Late 2023"]
[Site "https://www.chess.com"]
[Date "2023.11.21"]
[Round "1"]
[White "Deac, Bogdan-Daniel"]
[Black "Silva Lucena, Cristian"]
[Result "1-0"]
[Board "19"]
[TimeControl "180+1"]
[WhiteFideId "1226380"]
[BlackFideId "2232588"]
[WhiteElo "2641"]
[BlackElo "2248"]
[WhiteTeam "ROU"]
[BlackTeam "ESP"]
[WhiteClock "0:00:55"]
[BlackClock "0:01:05"]

1. b3 {[%clk 0:03:00]}  g6 {[%clk 0:02:58]} 2. Bb2 {[%clk 0:03:01]}  Nf6 {[%clk 0:02:58]} 3. Nf3 {[%clk 0:03:02]}  Bg7 {[%clk 0:02:59]} 4. g3 {[%clk 0:03:02]}  O-O {[%clk 0:02:59]} 5. Bg2 {[%clk 0:03:03]}  d6 {[%clk 0:03:00]} 6. d4 {[%clk 0:03:03]}  e5 {[%clk 0:02:54]} 7. dxe5 {[%clk 0:03:04]}  dxe5 {[%clk 0:02:55]} 8. Qxd8 {[%clk 0:02:59]}  Rxd8 {[%clk 0:02:55]} 9. Nxe5 {[%clk 0:02:58]}  Ng4 {[%clk 0:02:47]} 10. Nd3 {[%clk 0:02:57]}  Bxb2 {[%clk 0:02:47]} 11. Nxb2 {[%clk 0:02:55]}  Nc6 {[%clk 0:02:47]} 12. Nd3 {[%clk 0:02:52]}  Nd4 {[%clk 0:02:45]} 13. Na3 {[%clk 0:02:52]}  c6 {[%clk 0:02:34]} 14. h3 {[%clk 0:02:48]}  Nf6 {[%clk 0:02:33]} 15. Rd1 {[%clk 0:02:40]}  Bf5 {[%clk 0:02:31]} 16. c3 {[%clk 0:02:39]}  Bxd3 {[%clk 0:02:00]} 17. Rxd3 {[%clk 0:02:35]}  Ne6 {[%clk 0:01:59]} 18. Nc2 {[%clk 0:02:12]}  Nc5 {[%clk 0:01:58]} 19. Re3 {[%clk 0:02:11]}  Nd5 {[%clk 0:01:55]} 20. Bxd5 {[%clk 0:02:10]}  Rxd5 {[%clk 0:01:56]} 21. Nd4 {[%clk 0:02:10]}  Rad8 {[%clk 0:01:53]} 22. O-O {[%clk 0:02:10]}  Kf8 {[%clk 0:01:46]} 23. Kg2 {[%clk 0:02:07]}  h5 {[%clk 0:01:46]} 24. h4 {[%clk 0:02:07]}  Nd7 {[%clk 0:01:42]} 25. Nf3 {[%clk 0:01:27]}  Nf6 {[%clk 0:01:39]} 26. c4 {[%clk 0:01:26]}  R5d6 {[%clk 0:01:38]} 27. Rc3 {[%clk 0:01:24]}  Ne4 {[%clk 0:01:36]} 28. Rc2 {[%clk 0:01:24]}  Nd2 {[%clk 0:01:34]} 29. Rfc1 {[%clk 0:01:20]}  Nxf3 {[%clk 0:01:29]} 30. Kxf3 {[%clk 0:01:21]}  Rf6+ {[%clk 0:01:26]} 31. Kg2 {[%clk 0:01:21]}  Rfd6 {[%clk 0:01:27]} 32. f3 {[%clk 0:01:21]}  Kg7 {[%clk 0:01:24]} 33. Kf2 {[%clk 0:01:19]}  f5 {[%clk 0:01:21]} 34. b4 {[%clk 0:01:18]}  Rd4 {[%clk 0:01:20]} 35. a4 {[%clk 0:01:11]}  Kf6 {[%clk 0:01:18]} 36. a5 {[%clk 0:01:09]}  f4 {[%clk 0:01:17]} 37. gxf4 {[%clk 0:00:57]}  Rxf4 {[%clk 0:01:16]} 38. Kg3 {[%clk 0:00:57]}  Rdd4 {[%clk 0:01:05]} 39. e3 {[%clk 0:00:55]} 1-0

[Event "November 21 Late 2023"]
[Site "https://www.chess.com"]
[Date "2023.11.21"]
[Round "1"]
[White "Matlakov, Maxim"]
[Black "BM223344"]
[Result "1-0"]
[Board "23"]
[TimeControl "180+1"]
[WhiteFideId "4168003"]
[WhiteElo "2638"]
[BlackElo "2489"]
[WhiteTeam "RUS"]
[WhiteClock "0:01:24"]
[BlackClock "0:01:12"]

1. d4 {[%clk 0:03:00]}  Nf6 {[%clk 0:02:57]} 2. Nf3 {[%clk 0:03:01]}  e6 {[%clk 0:02:57]} 3. Bg5 {[%clk 0:03:02]}  Be7 {[%clk 0:02:57]} 4. Nbd2 {[%clk 0:03:01]}  d5 {[%clk 0:02:58]} 5. e3 {[%clk 0:03:01]}  Nbd7 {[%clk 0:02:59]} 6. Bd3 {[%clk 0:03:01]}  O-O {[%clk 0:02:59]} 7. c3 {[%clk 0:03:01]}  c5 {[%clk 0:03:00]} 8. h4 {[%clk 0:03:00]}  h6 {[%clk 0:02:59]} 9. Bf4 {[%clk 0:03:00]}  cxd4 {[%clk 0:02:56]} 10. exd4 {[%clk 0:02:59]}  b6 {[%clk 0:02:53]} 11. Qe2 {[%clk 0:02:59]}  Bb7 {[%clk 0:02:53]} 12. Ne5 {[%clk 0:02:53]}  Ne4 {[%clk 0:02:50]} 13. Nxe4 {[%clk 0:02:52]}  dxe4 {[%clk 0:02:50]} 14. Bxe4 {[%clk 0:02:53]}  Bxe4 {[%clk 0:02:49]} 15. Qxe4 {[%clk 0:02:54]}  Nxe5 {[%clk 0:02:42]} 16. Bxe5 {[%clk 0:02:53]}  Qd5 {[%clk 0:02:40]} 17. Qxd5 {[%clk 0:02:52]}  exd5 {[%clk 0:02:41]} 18. Kd2 {[%clk 0:02:51]}  Rfe8 {[%clk 0:02:41]} 19. Rae1 {[%clk 0:02:51]}  f6 {[%clk 0:02:41]} 20. Bg3 {[%clk 0:02:48]}  Kf7 {[%clk 0:02:42]} 21. h5 {[%clk 0:02:47]}  b5 {[%clk 0:02:39]} 22. Kd3 {[%clk 0:02:46]}  a5 {[%clk 0:02:38]} 23. Bf4 {[%clk 0:02:41]}  Rec8 {[%clk 0:02:32]} 24. g4 {[%clk 0:02:38]}  b4 {[%clk 0:02:28]} 25. Bd2 {[%clk 0:02:38]}  Rab8 {[%clk 0:02:23]} 26. Re2 {[%clk 0:02:36]}  bxc3 {[%clk 0:02:18]} 27. Bxc3 {[%clk 0:02:37]}  a4 {[%clk 0:02:18]} 28. Rhe1 {[%clk 0:02:36]}  Bf8 {[%clk 0:02:18]} 29. Re6 {[%clk 0:02:31]}  Rc4 {[%clk 0:02:14]} 30. Ra6 {[%clk 0:02:26]}  Rb7 {[%clk 0:02:10]} 31. Ra5 {[%clk 0:02:17]}  Rd7 {[%clk 0:02:04]} 32. f4 {[%clk 0:02:10]}  Bb4 {[%clk 0:01:49]} 33. Rxd5 {[%clk 0:01:56]}  Rdc7 {[%clk 0:01:39]} 34. Rd7+ {[%clk 0:01:52]}  Rxd7 {[%clk 0:01:38]} 35. Kxc4 {[%clk 0:01:52]}  Bd6 {[%clk 0:01:39]} 36. f5 {[%clk 0:01:51]}  Rc7+ {[%clk 0:01:37]} 37. Kd3 {[%clk 0:01:51]}  Rb7 {[%clk 0:01:36]} 38. Re6 {[%clk 0:01:50]}  Bf4 {[%clk 0:01:36]} 39. Ra6 {[%clk 0:01:48]}  Bc1 {[%clk 0:01:35]} 40. Kc2 {[%clk 0:01:48]}  Bf4 {[%clk 0:01:31]} 41. Rxa4 {[%clk 0:01:48]}  Re7 {[%clk 0:01:32]} 42. d5 {[%clk 0:01:39]}  Re2+ {[%clk 0:01:23]} 43. Kb3 {[%clk 0:01:29]}  Bh2 {[%clk 0:01:17]} 44. Ra7+ {[%clk 0:01:27]}  Kg8 {[%clk 0:01:16]} 45. a4 {[%clk 0:01:26]}  Rg2 {[%clk 0:01:16]} 46. a5 {[%clk 0:01:26]}  Rxg4 {[%clk 0:01:17]} 47. a6 {[%clk 0:01:26]}  Bg1 {[%clk 0:01:16]} 48. Rb7 {[%clk 0:01:25]}  Rg5 {[%clk 0:01:15]} 49. d6 {[%clk 0:01:23]}  Rxf5 {[%clk 0:01:12]} 50. d7 {[%clk 0:01:24]} 1-0